bitfinex-derivatives/quotes_SOLF0:USTF0_20230103
["timestamp","ask_amount","ask_price","bid_price","bid_amount"]
[1672787379019,0.00798593,13.28,13.277,5.0]
[1672787379230,15.03,13.29,13.277,5.0]
[1672787379651,15.03,13.29,13.279,0.06337919]
[1672787380598,7.52,13.29,13.279,0.06337919]
[1672787380808,7.52,13.292,13.279,0.06337919]
[1672787381020,7.52,13.292,13.281,0.06322055]
[1672787381966,7.49,13.29,13.281,0.06322055]
[1672787382175,7.49,13.29,13.281,0.06848637]
[1672787384275,7.48,13.288,13.281,0.06848637]
[1672787384488,7.48,13.288,13.28,0.06311664]
[1672787393323,7.29719746,13.288,13.28,0.06311664]
[1672787398051,7.51,13.284,13.28,1.664e-05]
[1672787398368,7.51,13.281,13.277,228.2]
[1672787398578,7.49,13.279,13.277,228.2]
[1672787399312,7.49,13.279,13.273,0.06797519]
[1672787399518,7.49,13.279,13.271,0.06787711]
[1672787400672,7.52,13.277,13.271,0.06787711]
[1672787402676,7.49,13.276,13.271,0.06787711]
[1672787405506,7.49,13.276,13.271,7.711e-05]
[1672787405825,7.49,13.276,13.266,228.2]
[1672787406770,7.49,13.274,13.259,7.45]
[1672787406980,0.06274786,13.271,13.262,0.0651694]
[1672787409503,0.06274786,13.271,13.262,5.0651694]
[1672787414540,0.06274786,13.271,13.262,0.0651694]
[1672787416117,7.57274786,13.271,13.262,0.0651694]
[1672787417586,7.48,13.267,13.262,0.0651694]
[1672787417801,7.51,13.264,13.249,7.51]
[1672787418011,7.51,13.264,13.25,5.0]
[1672787418536,7.52,13.266,13.251,7.47]
[1672787418852,0.06349881,13.263,13.256,228.2]
[1672787419064,0.06790549,13.264,13.257,5.0]
[1672787419270,0.06811269,13.265,13.257,5.0]
[1672787419485,0.06853202,13.266,13.257,5.0]
[1672787419799,0.06853202,13.266,13.257,5.06068131]
[1672787420001,0.06853202,13.266,13.257,233.26068131]
[1672787420215,7.49,13.265,13.257,233.26068131]
[1672787420425,7.49,13.265,13.257,228.26068131]
[1672787420947,7.49,13.265,13.258,228.2]
[1672787421157,7.49,13.265,13.259,5.0]
[1672787422214,0.06853202,13.266,13.259,5.0]
[1672787424948,0.06853202,13.266,13.258,228.2]
[1672787425265,7.52,13.265,13.258,228.2]
[1672787425575,7.52,13.265,13.259,5.0]
[1672787425993,7.52,13.265,13.259,233.2]
[1672787427157,7.52,13.265,13.257,0.06068131]
[1672787430202,7.36910546,13.265,13.257,0.06068131]
[1672787432934,0.06853202,13.266,13.257,0.06068131]
[1672787436295,0.06853202,13.266,13.257,5.06068131]
[1672787436709,0.00853202,13.266,13.258,7.47]
[1672787436923,0.00853202,13.266,13.261,5.0]
[1672787444910,15.07,13.277,13.261,20.07]
[1672787445223,60.28,13.292,13.261,20.07]
[1672787445224,15.07,13.281,13.266,228.2]
[1672787445437,15.07,13.281,13.267,5.0]
[1672787445963,0.06893167,13.279,13.269,0.07011091]
[1672787448271,15.07,13.277,13.269,0.07011091]
[1672787448483,15.07,13.274,13.269,0.07011091]
[1672787452688,15.00297097,13.276,13.269,0.07011091]
[1672787452898,0.06297097,13.276,13.269,0.07011091]
[1672787453736,15.11297097,13.276,13.269,0.07011091]
[1672787456796,0.06297097,13.276,13.269,0.07011091]
[1672787459000,15.04,13.28,13.276,0.00278485]
[1672787459524,15.05,13.278,13.276,0.00278485]
[1672787464148,15.05,13.28,13.276,0.00278485]
[1672787465829,15.04,13.277,13.272,0.06647144]
[1672787466042,15.05,13.273,13.272,0.06647144]
[1672787466255,15.05,13.273,13.268,0.06261161]
[1672787466459,15.05,13.273,13.267,5.0]
[1672787467096,15.12135271,13.275,13.267,5.0]
[1672787467514,0.07135271,13.275,13.267,5.0]
[1672787469201,14.99135271,13.275,13.267,5.0]
[1672787469407,7.55135271,13.275,13.267,5.0]
[1672787471930,7.55135271,13.275,13.266,0.07132046]
[1672787472879,7.5,13.272,13.266,0.07132046]
[1672787473083,7.49,13.27,13.266,0.07132046]
[1672787474030,0.06636459,13.266,13.261,5.0]
[1672787476238,0.06636459,13.266,13.259,0.06695434]
[1672787479928,0.06227885,13.268,13.26,5.0]
[1672787480236,7.52,13.275,13.262,5.0]
[1672787481081,0.06216278,13.273,13.264,0.07045666]
[1672787481498,0.06216278,13.273,13.268,7.46]
[1672787481713,7.52,13.281,13.269,5.0]
[1672787482763,0.06573323,13.28,13.27,0.07077606]
[1672787484447,7.49,13.279,13.27,0.07077606]
[1672787485076,0.06573323,13.28,13.27,0.07077606]
[1672787486022,7.5,13.279,13.27,0.07077606]
[1672787486233,7.49,13.278,13.27,0.07077606]
[1672787486547,7.5,13.276,13.27,0.07077606]
[1672787486759,0.06573323,13.28,13.27,0.07077606]
[1672787486760,7.53,13.274,13.27,0.07077606]
[1672787488860,7.5,13.272,13.27,0.07077606]
[1672787489074,7.5,13.272,13.26,5.0]
[1672787489909,7.5,13.272,13.261,0.06164282]
[1672787490121,0.06436205,13.271,13.261,0.06164282]
[1672787490858,0.06436205,13.271,13.262,7.53]
[1672787491060,0.06436205,13.271,13.263,233.2]
[1672787491275,0.06436205,13.271,13.264,5.0]
[1672787496637,0.06436205,13.271,13.263,228.2]
[1672787497055,7.54436205,13.271,13.264,228.2]
[1672787497370,7.54436205,13.271,13.265,5.0]
[1672787498630,7.54436205,13.271,13.265,233.2]
[1672787499796,7.54436205,13.271,13.265,5.0]
[1672787500005,7.54436205,13.271,13.261,0.06164282]
[1672787503462,7.38786522,13.271,13.261,0.06164282]
[1672787504512,7.45328183,13.271,13.261,0.06164282]
[1672787504722,0.06541661,13.271,13.261,0.06164282]
[1672787504937,0.06541661,13.271,13.262,7.53]
[1672787505148,0.00541661,13.271,13.265,7.53]
[1672787505356,0.00541661,13.271,13.267,228.2]
[1672787505567,0.00541661,13.271,13.268,5.0]
[1672787505780,7.48,13.28,13.268,5.0]
[1672787506194,7.48,13.28,13.269,0.06167528]
[1672787508510,7.52,13.278,13.269,0.06167528]
[1672787508719,7.52,13.278,13.269,0.0672295]
[1672787509352,15.06,13.279,13.269,0.0672295]
[1672787509562,15.06,13.279,13.269,0.06651045]
[1672787509981,15.06,13.277,13.269,0.06651045]
[1672787510296,15.06,13.277,13.268,5.06071892]
[1672787511556,15.06,13.277,13.268,0.06071892]
[1672787514921,15.06,13.279,13.268,0.06071892]
[1672787515126,15.02,13.281,13.269,0.06753249]
[1672787515334,15.02,13.281,13.267,228.2]
[1672787515335,15.02,13.281,13.27,0.0690659]
[1672787515864,15.06,13.279,13.27,0.0690659]
[1672787516072,15.06,13.276,13.27,0.07041607]
[1672787516283,15.06,13.276,13.268,233.26069006]
[1672787517228,15.06,13.276,13.268,5.06069006]
[1672787517438,15.06,13.277,13.268,5.06069006]
[1672787517649,15.06,13.279,13.268,5.07041322]
[1672787517853,15.06,13.279,13.269,0.0663957]
[1672787520066,14.83055466,13.279,13.269,0.0663957]
[1672787520490,15.06,13.276,13.269,0.0663957]
[1672787520695,15.06,13.276,13.268,5.06967287]
[1672787524273,15.06,13.279,13.268,5.06967287]
[1672787524486,15.02,13.283,13.269,0.06465524]
[1672787524694,15.02,13.283,13.271,0.06224225]
[1672787524905,15.02,13.283,13.271,5.06224225]
[1672787526480,14.93,13.284,13.271,5.06224225]
[1672787526794,14.93,13.284,13.273,0.06597122]
[1672787527743,15.06,13.283,13.273,0.06597122]
[1672787528055,15.06,13.283,13.273,0.0637983]
[1672787528258,15.02,13.284,13.273,0.0637983]
[1672787528581,15.02,13.284,13.274,0.06894106]
[1672787533410,14.87030773,13.284,13.274,0.06894106]
[1672787533628,15.06,13.288,13.277,228.2]
[1672787533940,15.06,13.288,13.278,5.063164]
[1672787534465,56.39,13.3,13.278,5.0]
[1672787534675,41.8347,13.301,13.284,0.06434043]
[1672787534676,15.02,13.294,13.284,0.06434043]
[1672787534884,15.06,13.295,13.284,0.0652083]
[1672787535095,15.06,13.295,13.285,0.06371006]
[1672787537094,15.02,13.298,13.285,0.06371006]
[1672787537305,15.02,13.298,13.287,0.06837446]
[1672787537938,15.06,13.3,13.287,0.06837446]
[1672787538252,15.06,13.3,13.287,5.06837446]
[1672787539722,14.93,13.302,13.287,5.06837446]
[1672787539931,14.93,13.302,13.29,0.06006815]
[1672787540141,14.93,13.302,13.29,5.06006815]
[1672787542873,15.06,13.307,13.292,5.0]
[1672787543084,15.06,13.307,13.295,0.06912189]
[1672787547488,56.5407,13.309,13.295,0.06912189]
[1672787547809,15.06,13.315,13.299,15.03]
[1672787548019,106.3,13.321,13.296,228.2]
[1672787548020,43.3267,13.314,13.302,0.06486168]
[1672787548222,43.3267,13.314,13.3,20.0]
[1672787548223,15.06,13.316,13.303,0.06027229]
[1672787548539,15.06,13.319,13.303,15.12027229]
[1672787548753,43.3267,13.32,13.306,228.26254804]
[1672787548960,15.06,13.317,13.306,228.26254804]
[1672787549485,14.88874093,13.317,13.307,5.0]
[1672787550334,15.06,13.315,13.306,0.06254804]
[1672787553590,14.93,13.316,13.306,0.06254804]
[1672787554432,15.06,13.318,13.306,0.06254804]
[1672787556534,43.3267,13.32,13.306,15.06254804]
[1672787556746,50.0,13.332,13.307,20.03]
[1672787556747,15.06,13.323,13.307,20.03]
[1672787556957,15.06,13.323,13.31,0.06290307]
[1672787557481,59.9085,13.325,13.31,0.06290307]
[1672787557692,59.9085,13.325,13.313,0.06925713]
[1672787558426,44.9785,13.325,13.313,0.06925713]
[1672787558842,15.06,13.327,13.313,0.06925713]
[1672787560106,42.6888,13.331,13.313,15.12925713]
[1672787560107,15.02,13.329,13.313,15.12925713]
[1672787560316,42.6888,13.331,13.312,5.0]
[1672787560317,42.6888,13.331,13.318,20.03]
[1672787560524,15.02,13.334,13.32,0.06755651]
[1672787561368,15.02,13.332,13.32,0.06755651]
[1672787561581,15.02,13.332,13.321,0.06669522]
[1672787562314,15.06,13.334,13.321,0.06669522]
[1672787562524,14.93155334,13.334,13.323,0.07058119]
[1672787562944,14.93,13.327,13.323,0.07058119]
[1672787563676,15.06,13.325,13.313,228.2]
[1672787563891,15.06,13.32,13.313,228.2]
[1672787564100,15.06,13.32,13.307,228.2]
[1672787564311,15.06,13.32,13.308,5.0]
[1672787564830,0.060961,13.319,13.309,0.06913109]
[1672787565781,0.060961,13.319,13.309,15.09913109]
[1672787566090,15.02,13.336,13.318,15.06]
[1672787566305,15.02,13.336,13.32,15.06]
[1672787566516,15.02,13.336,13.321,5.0]
[1672787566933,15.02,13.336,13.324,0.06575615]
[1672787567144,15.06,13.33,13.324,0.06575615]
[1672787567358,15.06,13.33,13.322,0.06204796]
[1672787567567,15.06,13.327,13.322,0.06204796]
[1672787568723,14.93,13.328,13.322,0.06204796]
[1672787569672,15.06,13.33,13.322,0.06204796]
[1672787569882,15.02,13.328,13.322,0.06204796]
[1672787570092,15.06,13.326,13.322,0.06204796]
[1672787572816,15.06,13.323,13.308,5.0]
[1672787573768,0.06886957,13.32,13.311,0.0684559]
[1672787575344,0.06886957,13.32,13.312,15.03]
[1672787575555,0.06886957,13.32,13.313,233.2]
[1672787575761,0.06886957,13.32,13.314,5.0]
[1672787576187,0.06886957,13.32,13.314,20.0]
[1672787577758,0.06886957,13.32,13.314,5.0]
[1672787580383,0.06886957,13.32,13.313,228.2]
[1672787581437,0.06886957,13.32,13.311,0.0684559]
[1672787585322,15.02,13.321,13.32,0.0167914]
[1672787585531,15.06,13.321,13.312,5.0]
[1672787585743,15.06,13.321,13.311,5.0]
[1672787586376,15.06,13.321,13.311,5.06005922]
[1672787587216,15.06,13.323,13.311,5.06005922]
[1672787587427,15.06,13.323,13.312,0.06805722]
[1672787592890,15.02,13.317,13.312,0.06805722]
[1672787593103,15.02,13.317,13.31,228.27037775]
[1672787593836,15.02,13.317,13.31,0.07037775]
[1672787594255,15.06,13.315,13.31,0.07037775]
[1672787596144,15.06,13.313,13.31,0.07037775]
[1672787596355,15.06,13.313,13.307,0.06643014]
[1672787597836,14.86700987,13.313,13.307,0.06643014]
[1672787600252,15.06,13.309,13.307,0.06643014]
[1672787600565,15.02,13.308,13.304,228.2]
[1672787600772,15.02,13.306,13.304,228.2]
[1672787601401,15.02,13.306,13.305,228.2]
[1672787601615,14.93,13.31,13.305,228.2]
[1672787602456,14.93,13.31,13.303,0.06914385]
[1672787603086,15.06,13.312,13.303,0.06914385]
[1672787603292,43.9177,13.321,13.303,0.06761838]
[1672787603293,14.93,13.316,13.303,0.06761838]
[1672787603502,14.93,13.316,13.305,0.06191519]
[1672787605398,15.06,13.322,13.306,243.14]
[1672787605604,15.06,13.331,13.316,228.2]
[1672787605818,44.2859,13.336,13.319,0.06821407]
[1672787605819,15.06,13.333,13.319,0.06821407]
[1672787606027,15.06,13.333,13.321,0.06672424]
[1672787607915,15.06,13.331,13.321,0.06672424]
[1672787608132,15.06,13.331,13.321,0.06271664]
[1672787609077,14.93,13.328,13.321,0.06271664]
[1672787609287,14.93,13.328,13.32,0.06915293]
[1672787610230,14.78407583,13.328,13.32,0.06915293]
[1672787610440,14.93,13.33,13.32,0.06915293]
[1672787612437,15.06,13.329,13.32,0.06915293]
[1672787613912,15.02,13.332,13.32,0.06915293]
[1672787614225,15.02,13.332,13.321,0.07071425]
[1672787615064,15.02,13.334,13.321,0.07071425]
[1672787615271,15.02,13.334,13.323,0.06529145]
[1672787616224,15.06,13.332,13.323,0.06529145]
[1672787616643,15.06,13.324,13.323,0.06529145]
[1672787616851,15.06,13.324,13.321,228.2]
[1672787617062,15.06,13.322,13.321,228.2]
[1672787617483,0.06349196,13.319,13.307,228.2]
[1672787617688,14.93,13.323,13.308,20.03]
[1672787617904,14.93,13.323,13.309,5.0]
[1672787618529,0.06474629,13.321,13.311,0.06805925]
[1672787618843,15.12474629,13.321,13.311,0.06805925]
[1672787619056,15.06,13.319,13.311,0.06805925]
[1672787620530,15.06,13.313,13.311,0.06805925]
[1672787620736,15.06,13.312,13.308,228.2]
[1672787621161,15.06,13.309,13.308,228.2]
[1672787621472,15.06,13.309,13.304,0.06783443]
[1672787621688,15.06,13.305,13.302,0.06807439]
[1672787621900,15.06,13.305,13.3,228.2]
[1672787622113,15.06,13.304,13.3,228.2]
[1672787622740,15.06,13.304,13.299,0.06660927]
[1672787624416,0.07004585,13.308,13.299,0.06660927]
[1672787624734,0.07004585,13.308,13.299,5.06660927]
[1672787624945,0.07004585,13.308,13.3,228.2]
[1672787625150,0.07004585,13.308,13.3,233.2]
[1672787625360,0.07004585,13.308,13.301,5.0]
[1672787630833,0.07004585,13.308,13.3,228.2]
[1672787631254,0.07004585,13.308,13.301,5.0]
[1672787632093,14.98,13.307,13.299,0.06660927]
[1672787635557,14.92,13.303,13.299,0.06660927]
[1672787635875,14.98,13.3,13.288,228.2]
[1672787636087,14.98,13.303,13.288,228.2]
[1672787636292,14.98,13.303,13.289,4.86469251]
[1672787636926,0.06886048,13.301,13.291,0.07034036]
[1672787637136,0.06230168,13.301,13.291,0.07094727]
[1672787639660,14.98,13.299,13.291,0.07094727]
[1672787639975,14.93,13.296,13.291,0.07094727]
[1672787640919,14.98,13.293,13.281,5.0]
[1672787641970,0.06029178,13.292,13.282,0.06134354]
[1672787642181,14.98,13.291,13.282,0.06134354]
[1672787643015,0.06029178,13.292,13.282,0.06134354]
[1672787644390,0.06029178,13.292,13.282,14.95134354]
[1672787644598,56.34,13.311,13.287,228.2]
[1672787644599,14.98,13.302,13.287,228.2]
[1672787644913,14.98,13.302,13.288,5.0]
[1672787645647,0.06073476,13.3,13.29,0.06808951]
[1672787646066,15.04073476,13.3,13.29,0.06808951]
[1672787648378,0.06073476,13.3,13.29,0.06808951]
[1672787649954,14.98,13.299,13.29,228.26808951]
[1672787650164,14.98,13.296,13.29,228.26808951]
[1672787650790,14.98,13.296,13.29,0.06808951]
[1672787652161,14.95,13.293,13.29,0.06808951]
[1672787652476,14.95,13.293,13.287,0.06407554]
[1672787652791,14.95,13.289,13.285,0.06917927]
[1672787653106,14.98,13.287,13.282,5.06615277]
[1672787653316,14.98,13.287,13.282,5.0]
[1672787653628,14.98,13.287,13.28,228.26959733]
[1672787654361,14.98,13.287,13.28,0.06959733]
[1672787655103,14.95,13.284,13.28,0.06959733]
[1672787655313,14.95,13.284,13.27,5.0]
[1672787655625,14.93,13.283,13.27,5.0]
[1672787656258,0.06887844,13.281,13.272,0.06995706]
[1672787660348,15.04887844,13.281,13.272,0.06995706]
[1672787661616,0.06887844,13.281,13.272,0.06995706]
[1672787664244,0.06887844,13.281,13.273,14.89]
[1672787664558,7.844e-05,13.281,13.274,5.0]
[1672787664769,14.98,13.292,13.274,5.0]
[1672787665184,14.98,13.29,13.274,5.0]
[1672787665821,14.98,13.29,13.277,0.06924505]
[1672787665822,0.07138972,13.287,13.277,0.06924505]
[1672787666664,0.07138972,13.287,13.277,228.26924505]
[1672787666868,0.07138972,13.287,13.278,5.0]
[1672787667604,14.98,13.286,13.278,5.0]
[1672787668450,14.98,13.286,13.277,0.06924505]
[1672787668661,0.07138972,13.287,13.277,0.06924505]
[1672787670549,14.92,13.284,13.277,0.06924505]
[1672787672656,14.98,13.28,13.277,0.06924505]
[1672787672864,14.98,13.28,13.274,0.06871853]
[1672787673075,14.98,13.28,13.272,0.0653968]
[1672787674122,15.04627474,13.282,13.272,0.0653968]
[1672787674337,0.06627474,13.282,13.272,0.0653968]
[1672787676117,15.04627474,13.282,13.272,0.0653968]
[1672787676856,5.0,13.281,13.272,0.0653968]
[1672787677804,20.04627474,13.282,13.272,0.0653968]
[1672787678642,15.04627474,13.282,13.272,0.0653968]
[1672787679378,14.98,13.278,13.272,0.0653968]
[1672787679589,14.93,13.278,13.272,0.0653968]
[1672787681485,5.0,13.277,13.272,9.68e-05]
[1672787682010,14.93,13.278,13.272,9.68e-05]
[1672787685374,64.98,13.273,13.272,9.68e-05]
[1672787685584,64.98,13.273,13.268,0.06419342]
[1672787685897,5.0,13.272,13.266,0.06254372]
[1672787686110,64.95,13.273,13.264,0.06070225]
[1672787686946,14.98,13.27,13.264,2.25e-06]
[1672787687259,14.98,13.266,13.264,2.25e-06]
[1672787687475,14.98,13.266,13.254,5.0]
[1672787687892,14.98,13.266,13.255,0.0671051]
[1672787688107,0.0708911,13.265,13.255,0.0671051]
[1672787688627,5.0708911,13.265,13.255,0.0671051]
[1672787688842,50.0,13.263,13.255,0.0671051]
[1672787689465,64.95,13.263,13.255,0.0671051]
[1672787689681,0.0708911,13.265,13.255,0.0671051]
[1672787690097,0.0708911,13.265,13.257,5.0]
[1672787697981,0.0708911,13.265,13.256,228.2]
[1672787699447,50.0,13.263,13.255,0.0671051]
[1672787700709,49.84584843,13.263,13.255,0.0671051]
[1672787701339,15.0208911,13.265,13.255,0.0671051]
[1672787701552,49.84584843,13.264,13.255,0.0671051]
[1672787701971,0.0708911,13.265,13.255,0.0671051]
[1672787704177,49.84584843,13.264,13.255,0.0671051]
[1672787704393,14.98,13.263,13.255,0.0671051]
[1672787704706,0.0708911,13.265,13.255,0.0671051]
[1672787706073,0.0708911,13.265,13.259,0.15415157]
[1672787706289,0.0708911,13.265,13.259,5.15415157]
[1672787706495,14.98,13.277,13.26,233.2]
[1672787706812,14.98,13.277,13.261,5.0]
[1672787707017,43.8664,13.278,13.261,5.0]
[1672787707232,43.8664,13.278,13.262,14.98]
[1672787707444,43.8664,13.278,13.263,5.0]
[1672787707655,0.0630004,13.275,13.266,0.07059445]
[1672787708281,49.84584843,13.274,13.266,0.07059445]
[1672787708494,14.98,13.271,13.266,0.07059445]
[1672787708918,64.82584843,13.274,13.266,0.07059445]
[1672787709438,5.0,13.273,13.266,0.07059445]
[1672787709648,19.93,13.273,13.266,0.07059445]
[1672787709862,64.0062,13.273,13.266,0.07059445]
[1672787710494,59.0062,13.273,13.266,0.07059445]
[1672787710806,49.84584843,13.267,13.256,228.2]
[1672787711013,64.82584843,13.264,13.256,228.2]
[1672787711220,44.0762,13.273,13.256,228.2]
[1672787711221,44.0762,13.273,13.257,5.0]
[1672787711434,14.98,13.271,13.257,233.2]
[1672787711856,0.06328997,13.269,13.259,0.06388778]
[1672787713116,14.98,13.265,13.259,0.06388778]
[1672787713325,49.84584843,13.264,13.259,0.06388778]
[1672787713953,14.98,13.265,13.259,0.06388778]
[1672787714159,49.84584843,13.264,13.259,0.06388778]
[1672787714792,14.98,13.262,13.259,8.778e-05]
[1672787715006,14.98,13.262,13.249,5.15415157]
[1672787715844,0.06819093,13.26,13.251,0.06996558]
[1672787716896,49.84584843,13.255,13.251,0.06996558]
[1672787717103,14.95,13.258,13.251,0.06996558]
[1672787717318,49.84584843,13.255,13.251,0.06996558]
[1672787717633,14.95,13.252,13.251,0.06996558]
[1672787717844,5.0,13.251,13.244,163.3016866]
[1672787718053,64.82584843,13.245,13.244,134.57162342]
[1672787718259,14.88,13.246,13.244,134.57162342]
[1672787718997,49.84584843,13.245,13.244,134.57162342]
[1672787719209,49.84584843,13.245,13.24,0.06385042]
[1672787719415,14.98,13.245,13.24,0.06385042]
[1672787719626,15.04072484,13.247,13.24,0.06385042]
[1672787719840,0.06072484,13.247,13.24,0.06385042]
[1672787720154,0.06072484,13.247,13.24,0.21800199]
[1672787720992,0.06072484,13.247,13.24,0.06385042]
[1672787721414,0.06072484,13.247,13.24,0.21800199]
[1672787721837,0.06072484,13.247,13.24,0.06385042]
[1672787722258,0.06072484,13.247,13.24,0.21800199]
[1672787722467,0.06072484,13.247,13.24,0.06385042]
[1672787722678,0.06072484,13.247,13.24,0.21800199]
[1672787724143,0.06072484,13.247,13.24,0.06385042]
[1672787724359,0.06072484,13.247,13.24,0.21800199]
[1672787724983,0.06072484,13.247,13.24,0.06385042]
[1672787725411,0.06072484,13.247,13.24,5.06385042]
[1672787726355,0.06072484,13.247,13.24,5.21800199]
[1672787726776,0.06072484,13.247,13.24,5.06385042]
[1672787727194,0.06072484,13.247,13.24,0.06385042]
[1672787727406,14.98,13.241,13.211,228.2]
[1672787727615,14.98,13.237,13.219,228.2]
[1672787727829,14.98,13.237,13.221,228.2]
[1672787728037,14.98,13.237,13.222,5.0]
[1672787728252,5.0,13.246,13.23,0.15415157]
[1672787728566,14.98,13.239,13.233,0.06814525]
[1672787728774,14.98,13.239,13.231,0.06049222]
[1672787728982,14.98,13.239,13.23,0.06457113]
[1672787729186,15.04726999,13.239,13.23,0.06760276]
[1672787729824,0.06726999,13.239,13.23,0.22175433]
[1672787730244,0.06726999,13.239,13.23,0.06760276]
[1672787730559,0.06726999,13.239,13.23,0.22175433]
[1672787732970,0.06726999,13.239,13.23,0.06760276]
[1672787733495,0.06726999,13.239,13.23,0.22175433]
[1672787734548,0.06726999,13.239,13.23,0.06760276]
[1672787734866,14.98,13.25,13.238,0.15415157]
[1672787735280,14.98,13.253,13.238,0.15415157]
[1672787735699,0.06465112,13.25,13.241,0.06783119]
[1672787741589,5.112e-05,13.25,13.241,0.06783119]
[1672787741808,49.84584843,13.265,13.242,5.0]
[1672787742752,0.06737846,13.258,13.249,0.06211846]
[1672787742962,0.0696228,13.258,13.249,0.06739196]
[1672787744848,0.0696228,13.258,13.25,0.15415157]
[1672787745483,0.0696228,13.258,13.249,0.06739196]
[1672787747058,0.0696228,13.258,13.25,0.15415157]
[1672787748110,0.0696228,13.258,13.249,0.06739196]
[1672787748633,0.0696228,13.258,13.25,0.15415157]
[1672787749683,0.0696228,13.258,13.249,0.06739196]
[1672787749891,0.0696228,13.258,13.25,0.15415157]
[1672787750943,0.0696228,13.258,13.249,0.06739196]
[1672787751680,0.0696228,13.258,13.25,0.15415157]
[1672787754093,0.0696228,13.258,13.249,228.26739196]
[1672787754308,18.9,13.271,13.251,228.2]
[1672787754518,18.9,13.271,13.252,5.0]
[1672787755360,0.06537495,13.266,13.257,0.06159054]
[1672787756509,49.91122338,13.266,13.257,0.06159054]
[1672787756724,15.01,13.261,13.257,0.06159054]
[1672787757560,15.08,13.264,13.257,0.06159054]
[1672787758936,49.91122338,13.266,13.257,0.06159054]
[1672787758937,64.99122338,13.266,13.257,0.06159054]
[1672787759143,15.14537495,13.266,13.257,0.06159054]
[1672787759355,0.06537495,13.266,13.257,0.06159054]
[1672787760403,0.06537495,13.266,13.261,0.15415157]
[1672787762301,0.06537495,13.266,13.257,0.06159054]
[1672787762716,0.06537495,13.266,13.261,0.15415157]
[1672787762926,0.06537495,13.266,13.257,0.06159054]
[1672787763554,0.06537495,13.266,13.261,0.15415157]
[1672787766187,0.06537495,13.266,13.257,0.06159054]
[1672787767868,15.08,13.269,13.266,0.03741447]
[1672787768390,15.08,13.269,13.255,228.2]
[1672787768391,64.92584843,13.267,13.255,228.2]
[1672787768602,15.01,13.258,13.255,228.2]
[1672787769653,15.01,13.258,13.252,0.06541614]
[1672787780054,15.05,13.26,13.252,0.06541614]
[1672787780580,14.96,13.257,13.252,0.06541614]
[1672787781942,14.98,13.26,13.252,0.06541614]
[1672787783417,15.01,13.258,13.252,0.06541614]
[1672787790458,15.12111368,13.261,13.252,0.06541614]
[1672787790769,15.02,13.268,13.252,0.06541614]
[1672787790983,15.08,13.271,13.252,15.07]
[1672787791298,15.08,13.271,13.253,5.0]
[1672787791924,0.06826369,13.267,13.257,0.0611806]
[1672787794238,0.06826369,13.267,13.261,0.15415157]
[1672787795393,0.06826369,13.267,13.258,5.0]
[1672787795708,0.06826369,13.267,13.261,0.15415157]
[1672787798122,0.06826369,13.267,13.258,5.0]
[1672787798329,0.06826369,13.267,13.261,0.15415157]
[1672787799698,0.06826369,13.267,13.26,5.0]
[1672787800331,0.06826369,13.267,13.261,0.15415157]
[1672787800962,0.00826369,13.267,13.261,0.15415157]
[1672787801173,0.00826369,13.267,13.263,15.03]
[1672787801383,0.00826369,13.267,13.264,5.0]
[1672787801596,56.4749,13.279,13.264,5.0]
[1672787802018,56.4749,13.279,13.267,0.06201083]
[1672787802324,15.08,13.279,13.267,0.06201083]
[1672787803694,15.08,13.279,13.271,0.15415157]
[1672787804011,15.08,13.279,13.27,0.07133526]
[1672787805061,15.08,13.279,13.271,0.15415157]
[1672787806106,15.05,13.282,13.271,0.15415157]
[1672787806322,15.08,13.283,13.271,0.15415157]
[1672787806532,15.08,13.283,13.272,0.06648144]